fUST/lending_fUST_20260311
["ID","MTS","AMOUNT","RATE_DAILY","PERIOD"]
[408141155,1773168642580,-1000.0,0.00010302,2]
[408141157,1773168642590,-200.0,0.00010367,2]
[408141159,1773168642601,-2876.18991768,0.00010381,2]
[408141161,1773168642610,-458.60830686,0.00010381,2]
[408141163,1773168642620,-522.87,0.000104,2]
[408141165,1773168642629,-500.0,0.000104,2]
[408141167,1773168642641,-500.0,0.000104,2]
[408141169,1773168642650,-500.0,0.000104,2]
[408141171,1773168642660,-500.0,0.000104,2]
[408141173,1773168642670,-500.0,0.000104,2]
[408141175,1773168642680,-1000.0,0.00010404,2]
[408141177,1773168642689,-800.0,0.00010427,2]
[408141179,1773168642699,-5000.0,0.00010454,2]
[408141181,1773168642709,-1000.0,0.00010506,2]
[408141183,1773168642718,-800.0,0.00010566,2]
[408141185,1773168642727,-1000.0,0.00010608,2]
[408141186,1773168642737,-387.1506894,0.00010641,2]
[408141188,1773168642746,-800.0,0.00010695,2]
[408141190,1773168642756,-1000.0,0.0001071,2]
[408141192,1773168642765,-800.0,0.00010752,2]
[408141194,1773168642776,-1000.0,0.00010812,2]
[408141196,1773168642785,-2982.60894464,0.00010929,2]
[408141198,1773168642795,-1000.0,0.00010958,2]
[408141200,1773168642805,-294.383426,0.00010959,2]
[408141202,1773168642814,-294.383426,0.00010959,2]
[408141204,1773168642824,-294.383426,0.00010959,2]
[408141206,1773168642834,-294.383426,0.00010959,2]
[408141208,1773168642844,-294.383426,0.00010959,2]
[408141210,1773168642854,-294.383426,0.00010959,2]
[408141212,1773168642863,-294.383426,0.00010959,2]
[408141214,1773168642872,-294.383426,0.00010959,2]
[408141216,1773168642881,-294.383426,0.00010959,2]
[408141218,1773168642891,-294.383419,0.00010959,2]
[408141220,1773168642901,-652.479137,0.00010959,2]
[408141222,1773168642910,-652.479137,0.00010959,2]
[408141224,1773168642919,-652.479137,0.00010959,2]
[408141225,1773168642928,-652.479137,0.00010959,2]
[408141228,1773168642938,-652.479137,0.00010959,2]
[408141229,1773168642948,-652.479137,0.00010959,2]
[408141231,1773168642957,-652.479137,0.00010959,2]
[408141233,1773168642967,-652.479137,0.00010959,2]
[408141235,1773168642976,-652.479137,0.00010959,2]
[408141237,1773168642986,-652.479137,0.00010959,2]
[408141239,1773168642995,-652.479137,0.00010959,2]
[408141241,1773168643006,-652.479137,0.00010959,2]
[408141243,1773168643015,-652.479137,0.00010959,2]
[408141245,1773168643025,-4066.251467,0.00010959,2]
[408141247,1773168643035,-652.479137,0.00010959,2]
[408141249,1773168643046,-4066.251467,0.00010959,2]
[408141251,1773168643055,-652.479137,0.00010959,2]
[408141253,1773168643064,-4066.251467,0.00010959,2]
[408141255,1773168643079,-652.479137,0.00010959,2]
[408141257,1773168643089,-4066.251467,0.00010959,2]
[408141259,1773168643098,-652.479137,0.00010959,2]
[408141261,1773168643108,-4066.251467,0.00010959,2]
[408141263,1773168643117,-652.479137,0.00010959,2]
[408141265,1773168643127,-4066.251467,0.00010959,2]
[408141267,1773168643137,-652.479137,0.00010959,2]
[408141269,1773168643147,-4066.251467,0.00010959,2]
[408141271,1773168643157,-652.479142,0.00010959,2]
[408141273,1773168643167,-4066.251467,0.00010959,2]
[408141275,1773168643177,-4066.251467,0.00010959,2]
[408141277,1773168643186,-4066.251467,0.00010959,2]
[408141279,1773168643196,-4066.251467,0.00010959,2]
[408141281,1773168643206,-4066.251467,0.00010959,2]
[408141283,1773168643216,-4066.251467,0.00010959,2]
[408141285,1773168643229,-4066.251467,0.00010959,2]
[408141287,1773168643239,-4066.251467,0.00010959,2]
[408141289,1773168643249,-4066.251467,0.00010959,2]
[408141291,1773168643258,-4066.251467,0.00010959,2]
[408141293,1773168643268,-4066.251467,0.00010959,2]
[408141295,1773168643278,-4066.251467,0.00010959,2]
[408141297,1773168643288,-4066.251472,0.00010959,2]
[408141299,1773168643299,-276.901242,0.00010959,2]
[408141301,1773168643308,-276.901242,0.00010959,2]
[408141303,1773168643317,-276.901242,0.00010959,2]
[408141305,1773168643327,-276.901242,0.00010959,2]
[408141307,1773168643337,-276.901242,0.00010959,2]
[408141309,1773168643347,-276.901242,0.00010959,2]
[408141311,1773168643356,-276.901242,0.00010959,2]
[408141313,1773168643365,-276.901242,0.00010959,2]
[408141315,1773168643375,-276.901242,0.00010959,2]
[408141317,1773168643384,-276.901242,0.00010959,2]
[408141319,1773168643394,-276.901242,0.00010959,2]
[408141321,1773168643403,-276.901242,0.00010959,2]
[408141323,1773168643412,-276.901242,0.00010959,2]
[408141325,1773168643422,-276.901242,0.00010959,2]
[408141327,1773168643431,-276.901242,0.00010959,2]
[408141329,1773168643440,-276.901242,0.00010959,2]
[408141330,1773168643450,-276.901242,0.00010959,2]
[408141332,1773168643459,-276.901242,0.00010959,2]
[408141334,1773168643469,-276.901242,0.00010959,2]
[408141336,1773168643478,-276.901233,0.00010959,2]
[408141338,1773168643487,-211.863592,0.00010959,2]
[408141340,1773168643498,-211.863592,0.00010959,2]
[408141342,1773168643507,-211.863592,0.00010959,2]
[408141344,1773168643517,-211.863592,0.00010959,2]
[408141346,1773168643526,-211.863592,0.00010959,2]
[408141348,1773168643537,-211.863592,0.00010959,2]
[408141350,1773168643546,-211.863592,0.00010959,2]
[408141352,1773168643555,-211.863592,0.00010959,2]
[408141354,1773168643564,-211.863592,0.00010959,2]
[408141356,1773168643573,-211.863592,0.00010959,2]
[408141358,1773168643582,-211.863592,0.00010959,2]
[408141360,1773168643592,-211.863592,0.00010959,2]
[408141362,1773168643601,-211.863592,0.00010959,2]
[408141364,1773168643610,-211.863592,0.00010959,2]
[408141366,1773168643619,-211.863592,0.00010959,2]
[408141368,1773168643628,-211.863592,0.00010959,2]
[408141370,1773168643637,-211.863592,0.00010959,2]
[408141372,1773168643647,-211.863592,0.00010959,2]
[408141374,1773168643656,-211.863592,0.00010959,2]
[408141376,1773168643665,-211.863595,0.00010959,2]
[408141378,1773168643674,-466.533079,0.00010959,2]
[408141379,1773168643684,-466.533079,0.00010959,2]
[408141381,1773168643693,-466.533079,0.00010959,2]
[408141383,1773168643702,-151.0,0.00010959,2]
[408141385,1773168643712,-466.533079,0.00010959,2]
[408141387,1773168643721,-466.533079,0.00010959,2]
[408141389,1773168643731,-181.687594,0.00010959,2]
[408141391,1773168643740,-466.533079,0.00010959,2]
[408141393,1773168643749,-466.533079,0.00010959,2]
[408141395,1773168643759,-466.533079,0.00010959,2]
[408141397,1773168643768,-466.533079,0.00010959,2]
[408141399,1773168643777,-466.533079,0.00010959,2]
[408141401,1773168643786,-466.533079,0.00010959,2]
[408141403,1773168643796,-466.533079,0.00010959,2]
[408141405,1773168643805,-466.533079,0.00010959,2]
[408141407,1773168643815,-466.533079,0.00010959,2]
[408141409,1773168643823,-466.533079,0.00010959,2]
[408141411,1773168643832,-466.533079,0.00010959,2]
[408141412,1773168643841,-466.533079,0.00010959,2]
[408141414,1773168643850,-466.533079,0.00010959,2]
[408141416,1773168643860,-466.533079,0.00010959,2]
[408141418,1773168643870,-466.533079,0.00010959,2]
[408141420,1773168643879,-999.430682,0.00010959,2]
[408141422,1773168643888,-999.430682,0.00010959,2]
[408141424,1773168643898,-999.430682,0.00010959,2]
[408141426,1773168643910,-999.430682,0.00010959,2]
[408141428,1773168643920,-999.430682,0.00010959,2]
[408141430,1773168643929,-999.430682,0.00010959,2]
[408141432,1773168643938,-999.430682,0.00010959,2]
[408141434,1773168643948,-999.430682,0.00010959,2]
[408141436,1773168643958,-999.430682,0.00010959,2]
[408141438,1773168643967,-999.430682,0.00010959,2]
[408141439,1773168643977,-999.430682,0.00010959,2]
[408141440,1773168643986,-999.430682,0.00010959,2]
[408141441,1773168643995,-999.430682,0.00010959,2]
[408141442,1773168644004,-999.430682,0.00010959,2]
[408141443,1773168644013,-999.430682,0.00010959,2]
[408141444,1773168644023,-999.430682,0.00010959,2]
[408141445,1773168644032,-999.430682,0.00010959,2]
[408141446,1773168644041,-999.430682,0.00010959,2]
[408141447,1773168644051,-999.430682,0.00010959,2]
[408141448,1773168644060,-999.430675,0.00010959,2]
[408141449,1773168644070,-394.560486,0.00010959,2]
[408141450,1773168644079,-394.560486,0.00010959,2]
[408141451,1773168644088,-394.560486,0.00010959,2]
[408141452,1773168644098,-394.560486,0.00010959,2]
[408141454,1773168644106,-394.560486,0.00010959,2]
[408141456,1773168644115,-394.560486,0.00010959,2]
[408141458,1773168644127,-394.560486,0.00010959,2]
[408141475,1773168644332,-394.560486,0.00010959,2]
[408141476,1773168644341,-394.560486,0.00010959,2]
[408141477,1773168644350,-394.560486,0.00010959,2]
[408141478,1773168644360,-394.560486,0.00010959,2]
[408141479,1773168644369,-394.560486,0.00010959,2]
[408141480,1773168644379,-394.560486,0.00010959,2]
[408141481,1773168644388,-394.560486,0.00010959,2]
[408141482,1773168644400,-394.560486,0.00010959,2]
[408141483,1773168644409,-394.560486,0.00010959,2]
[408141484,1773168644417,-394.560486,0.00010959,2]
[408141485,1773168644426,-394.560486,0.00010959,2]
[408141486,1773168644435,-394.560486,0.00010959,2]
[408141487,1773168644444,-394.560481,0.00010959,2]
[408141488,1773168644454,-672.148301,0.00010959,2]
[408141490,1773168644464,-672.148301,0.00010959,2]
[408141492,1773168644473,-672.148301,0.00010959,2]
[408141494,1773168644482,-672.148301,0.00010959,2]
[408141496,1773168644491,-672.148301,0.00010959,2]
[408141498,1773168644501,-672.148301,0.00010959,2]
[408141500,1773168644510,-672.148301,0.00010959,2]
[408141502,1773168644519,-672.148301,0.00010959,2]
[408141504,1773168644529,-672.148301,0.00010959,2]
[408141506,1773168644538,-672.148301,0.00010959,2]
[408141508,1773168644547,-672.148301,0.00010959,2]
[408141510,1773168644556,-672.148301,0.00010959,2]
[408141512,1773168644567,-672.148301,0.00010959,2]
[408141514,1773168644575,-672.148301,0.00010959,2]
[408141516,1773168644585,-672.148301,0.00010959,2]
[408141518,1773168644594,-672.148301,0.00010959,2]
[408141519,1773168644603,-672.148301,0.00010959,2]
[408141520,1773168644612,-672.148301,0.00010959,2]
[408141521,1773168644622,-672.148301,0.00010959,2]
[408141522,1773168644632,-672.148309,0.00010959,2]
[408141523,1773168644641,-798.915827,0.00010959,2]
[408141524,1773168644651,-798.915827,0.00010959,2]
[408141525,1773168644660,-798.915827,0.00010959,2]
[408141526,1773168644670,-798.915827,0.00010959,2]
[408141527,1773168644679,-798.915827,0.00010959,2]
[408141528,1773168644688,-798.915827,0.00010959,2]
[408141529,1773168644697,-798.915827,0.00010959,2]
[408141530,1773168644707,-798.915827,0.00010959,2]
[408141531,1773168644716,-798.915827,0.00010959,2]
[408141532,1773168644725,-798.915827,0.00010959,2]
[408141533,1773168644734,-798.915827,0.00010959,2]
[408141534,1773168644743,-798.915827,0.00010959,2]
[408141535,1773168644754,-798.915827,0.00010959,2]
[408141536,1773168644763,-798.915827,0.00010959,2]
[408141537,1773168644773,-798.915827,0.00010959,2]
[408141538,1773168644782,-798.915827,0.00010959,2]
[408141539,1773168644791,-798.915827,0.00010959,2]
[408141540,1773168644801,-798.915827,0.00010959,2]
[408141541,1773168644810,-798.915827,0.00010959,2]
[408141542,1773168644819,-798.915818,0.00010959,2]
[408141543,1773168644828,-493.57234,0.00010959,2]
[408141544,1773168644837,-493.57234,0.00010959,2]
[408141545,1773168644846,-493.57234,0.00010959,2]
[408141546,1773168644856,-493.57234,0.00010959,2]
[408141547,1773168644865,-493.57234,0.00010959,2]
[408141548,1773168644874,-493.57234,0.00010959,2]
[408141549,1773168644883,-493.57234,0.00010959,2]
[408141550,1773168644894,-493.57234,0.00010959,2]
[408141551,1773168644903,-493.57234,0.00010959,2]
[408141552,1773168644912,-493.57234,0.00010959,2]
[408141553,1773168644922,-493.57234,0.00010959,2]
[408141554,1773168644932,-493.57234,0.00010959,2]
[408141555,1773168644942,-493.57234,0.00010959,2]
[408141556,1773168644952,-493.57234,0.00010959,2]
[408141557,1773168644962,-493.57234,0.00010959,2]
[408141558,1773168644972,-493.57234,0.00010959,2]
[408141559,1773168644982,-493.57234,0.00010959,2]
[408141560,1773168644991,-493.57234,0.00010959,2]
[408141561,1773168645001,-493.57234,0.00010959,2]
[408141562,1773168645010,-493.572331,0.00010959,2]
[408141563,1773168645019,-1812.796062,0.00010959,2]
[408141564,1773168645029,-1812.796062,0.00010959,2]
[408141565,1773168645038,-1812.796062,0.00010959,2]
[408141566,1773168645047,-1812.796062,0.00010959,2]
[408141567,1773168645056,-1812.796062,0.00010959,2]
[408141568,1773168645066,-1812.796062,0.00010959,2]
[408141569,1773168645075,-1812.796062,0.00010959,2]
[408141570,1773168645084,-1812.796062,0.00010959,2]
[408141571,1773168645093,-1812.796062,0.00010959,2]
[408141572,1773168645103,-1812.796062,0.00010959,2]
[408141573,1773168645112,-1812.796062,0.00010959,2]
[408141574,1773168645121,-1812.796062,0.00010959,2]
[408141575,1773168645131,-1812.796062,0.00010959,2]
[408141576,1773168645142,-1812.796062,0.00010959,2]
[408141577,1773168645151,-1812.796062,0.00010959,2]
[408141578,1773168645162,-1812.796062,0.00010959,2]
[408141579,1773168645171,-1812.796062,0.00010959,2]
[408141580,1773168645181,-1812.796062,0.00010959,2]
[408141581,1773168645191,-1812.796062,0.00010959,2]
[408141582,1773168645200,-1812.796069,0.00010959,2]
[408141583,1773168645209,-5500.0,0.00011002,2]
[408141584,1773168645219,-1000.0,0.00011129,2]
[408141585,1773168645233,-1000.0,0.00011129,2]
[408141586,1773168645242,-2385.62041045,0.00011172,2]
[408141587,1773168645252,-1000.0,0.00011177,2]
[408141589,1773168645262,-453.21819082,0.00011371,2]
[408141590,1773168645271,-1000.0,0.00011396,2]
[408141591,1773168645281,-408706.26008181,0.000114,2]
[408141592,1773168645290,-877.21732275,0.000114,2]
[408141593,1773168645299,-484.43210921,0.00011413,120]
[408141594,1773168645309,-3092.96547559,0.00011477,2]
[408141595,1773168645318,-5588.00775102,0.0001155,2]
[408141596,1773168645327,-1000.0,0.00011615,2]
[408141597,1773168645336,-1602.66224047,0.00011643,7]
[408141598,1773168645345,-440.34469607,0.0001168,7]
[408141599,1773168645354,-681.73042509,0.0001168,7]
[408141600,1773168645363,-442.47537097,0.00011708,7]
[408141601,1773168645372,-1584.61946789,0.00011708,7]
[408141603,1773168645382,-924.51191795,0.00011745,7]
[408141604,1773168645391,-14910.60521033,0.00011831,2]
[408141605,1773168645401,-1000.0,0.00011835,2]
[408141607,1773168645410,-3473.0,0.00011852,10]
[408141609,1773168645419,-233.19432907,0.00011873,7]
[408141611,1773168645428,-341.53426957,0.00011873,7]
[408141612,1773168645437,-202.4191681,0.00011873,7]
[408141613,1773168645447,-506.0,0.000119,2]
[408141614,1773168645456,-184.3390664,0.0001194,7]
[408141615,1773168645465,-287.76080434,0.0001194,7]
[408141616,1773168645475,-207.86921061,0.0001194,7]
[408141617,1773168645484,-2000.0,0.00012,2]
[408141618,1773168645493,-2000.0,0.00012,2]
[408141619,1773168645502,-1500.0,0.00012,2]
[408141620,1773168645511,-1500.0,0.00012,2]
[408141622,1773168645520,-3207.40519818,0.00012025,2]
[408141623,1773168645530,-1000.0,0.00012054,2]
[408141624,1773168645540,-1602.66224047,0.00012054,7]
[408141625,1773168645549,-681.73042509,0.000121,7]
[408141626,1773168645558,-440.34469607,0.000121,7]
[408141627,1773168645568,-442.47537097,0.00012135,7]
[408141628,1773168645578,-1584.61946789,0.00012135,7]
[408141629,1773168645587,-924.51191795,0.00012181,7]
[408141630,1773168645596,-1000.0,0.00012242,2]
[408141631,1773168645606,-1000.0,0.00012242,2]
[408141632,1773168645616,-579.0,0.00012242,2]
[408141634,1773168645626,-1000.0,0.00012273,2]
[408141635,1773168645635,-1602.66224047,0.00012465,7]
[408141636,1773168645646,-1000.0,0.00012492,2]
[408141637,1773168645655,-681.73042509,0.0001252,7]
[408141638,1773168645664,-440.34469607,0.0001252,7]
[408141639,1773168645674,-387.73174719,0.00012521,2]
[408141641,1773168645683,-442.47537097,0.00012562,7]
[408141643,1773168645692,-1584.61946789,0.00012562,7]
[408141644,1773168645701,-3326.07919052,0.00012573,2]
[408141645,1773168645710,-387.73174719,0.00012575,2]
[408141646,1773168645719,-924.51191795,0.00012617,7]
[408141647,1773168645729,-387.73174719,0.0001263,2]
[408141648,1773168645739,-233.19432907,0.0001271,7]
[408141649,1773168645748,-202.4191681,0.0001271,7]
[408141650,1773168645757,-341.53426957,0.0001271,7]
[408141651,1773168645767,-1000.0,0.00012711,2]
[408141652,1773168645776,-387.73174719,0.00012712,2]
[408141653,1773168645786,-387.73174719,0.00012767,2]
[408141654,1773168645795,-287.76080434,0.0001281,7]
[408141655,1773168645804,-207.86921061,0.0001281,7]
[408141656,1773168645814,-387.73174719,0.00012822,2]
[408141657,1773168645823,-1602.66224047,0.00012875,7]
[408141658,1773168645832,-387.73174719,0.00012877,2]
[408141659,1773168645841,-506.0,0.000129,2]
[408141660,1773168645851,-681.73042509,0.0001294,7]
[408141661,1773168645861,-440.34469607,0.0001294,7]
[408141662,1773168645871,-387.73174719,0.00012959,2]
[408141663,1773168645881,-2196.88514745,0.0001298,2]
[408141664,1773168645890,-442.47537097,0.00012989,7]
[408141665,1773168645899,-1584.61946789,0.00012989,7]
[408141666,1773168645908,-200.0,0.00013,3]
[408141667,1773168645917,-401.31210848,0.00013,2]
[408141668,1773168645926,-387.73174719,0.00013014,2]
[408141669,1773168645936,-924.51191795,0.00013053,7]
[408141670,1773168645945,-387.73174719,0.00013068,2]
[408141671,1773168645954,-500.08,0.000131,2]
[408141672,1773168645963,-387.73174719,0.00013123,2]
[408141673,1773168645973,-387.73174719,0.00013178,2]
[408141674,1773168645982,-2193.0,0.00013237,2]
[408141675,1773168645991,-1602.66224047,0.00013286,7]
[408141676,1773168646001,-887.29258131,0.00013287,2]
[408141677,1773168646010,-681.73042509,0.0001336,7]
[408141678,1773168646018,-440.34469607,0.0001336,7]
[408141679,1773168646027,-7778.24964732,0.00013366,2]
[408141680,1773168646036,-506.19174559,0.00013371,2]
[408141681,1773168646046,-38000.0,0.00013405,3]
[408141682,1773168646055,-38000.0,0.00013414,3]
[408141683,1773168646064,-442.47537097,0.00013416,7]
[408141684,1773168646073,-1584.61946789,0.00013416,7]
[408141685,1773168646083,-38000.0,0.00013423,3]
[408141686,1773168646092,-38000.0,0.00013432,3]
[408141687,1773168646101,-1024.0,0.0001344,2]
[408141688,1773168646110,-38000.0,0.0001344,3]
[408141689,1773168646119,-38000.0,0.00013449,3]
[408141690,1773168646129,-38000.0,0.00013458,3]
[408141691,1773168646138,-27418.08601538,0.00013458,3]
[408141692,1773168646148,-1000.0,0.00013466,2]
[408141693,1773168646157,-1000.0,0.00013466,2]
[408141694,1773168646167,-1000.0,0.00013466,2]
[408141695,1773168646176,-924.51191795,0.00013489,7]
[408141696,1773168646185,-200.0,0.000135,3]
[408141697,1773168646195,-160.0,0.000135,3]
[408141698,1773168646205,-160.0,0.000135,5]
[408141699,1773168646214,-233.19432907,0.00013546,7]
[408141700,1773168646224,-202.4191681,0.00013546,7]
[408141701,1773168646236,-341.53426957,0.00013546,7]
[408141702,1773168646245,-1000000.0,0.000136,2]
[408141703,1773168646254,-184.3390664,0.00013681,7]
[408141704,1773168646263,-287.76080434,0.00013681,7]
[408141705,1773168646273,-207.86921061,0.00013681,7]
[408141706,1773168646283,-422141.77545921,0.0001369,7]
[408141707,1773168646292,-87259.93897237,0.0001369,7]
[408141708,1773168646314,-428.47,0.0001369,7]
[408141709,1773168646328,-57570.41566602,0.0001369,7]
[408141710,1773168647137,-1635.28959165,5.346e-05,2]
[408141711,1773168647247,-3364.71040835,5.346e-05,2]
[408141712,1773168647257,-1011.99572903,8.91e-05,2]
[408141713,1773168647267,-151.0,0.00010959,2]
[408141714,1773168647277,-151.0,0.00010959,2]
[408141715,1773168647286,-170619.04144755,0.0001369,7]
[408141716,1773168647297,-43966.37526459,0.0001369,7]
[408141717,1773168647310,-585.97660249,0.0001369,7]
[408141718,1773168647321,-7173.62971349,0.0001369,7]
[408141719,1773168647424,-1994.81770619,0.0001369,7]
[408141720,1773168647502,-151.0,0.00010959,2]
[408141721,1773168647512,-151.0,0.00010959,2]
[408141722,1773168647522,-151.0,0.00010959,2]
[408141723,1773168647533,-151.0,0.00010959,2]
[408141724,1773168647542,-151.0,0.00010959,2]
[408141725,1773168647551,-151.0,0.00010959,2]
[408141726,1773168647562,-151.0,0.00010959,2]
[408141727,1773168647571,-151.0,0.00010959,2]
[408141728,1773168647580,-151.0,0.00010959,2]
[408141729,1773168647589,-205.9032646,0.0001369,7]
[408141730,1773168647600,-19390.48311622,0.0001369,7]
[408141731,1773168647611,-635.2031,0.0001369,7]
[408141732,1773168647622,-407.842,0.0001369,7]
[408141733,1773168647634,-1042.12160456,0.0001369,7]
[408141734,1773168698794,165.267408,4.536e-05,2]
[408141749,1773169262977,-456.17678141,7.341e-05,2]
[408141754,1773169552534,-160.42274063,6.636e-05,2]
[408141758,1773169648838,-2017.41286271,6.57e-05,2]
[408141766,1773169831764,-938.48703207,6.374e-05,2]
[408141767,1773169831777,-463.38282993,6.374e-05,2]
[408141933,1773169838322,-687.33916467,6.374e-05,2]
[408141940,1773169838399,-885.87088515,6.374e-05,2]
[408142108,1773169840742,-812.04690215,6.374e-05,2]
[408142302,1773169843010,-1063.22833613,6.374e-05,2]
[408142303,1773169843021,-149.6448499,6.374e-05,2]
[408142304,1773169843030,-1200.0,6.438e-05,2]
[408142305,1773169843039,-5000.0,6.439e-05,2]
[408142306,1773169843048,-512.0,6.439e-05,2]
[408142307,1773169843057,-1096.68474537,6.504e-05,2]
[408142308,1773169843065,-264.60623635,6.67e-05,2]
[408142309,1773169843074,-300.0,6.839e-05,2]
[408142310,1773169843083,-300.0,6.904e-05,2]
[408142311,1773169843092,-300.0,6.904e-05,2]
[408142312,1773169843101,-300.0,6.904e-05,2]
[408142313,1773169843110,-300.0,6.904e-05,2]
[408142314,1773169843119,-300.0,6.905e-05,2]
[408142315,1773169843127,-300.0,6.905e-05,2]
[408142316,1773169843136,-300.0,6.905e-05,2]
[408142317,1773169843145,-300.0,6.905e-05,2]
[408142318,1773169843154,-300.0,6.905e-05,2]
[408142319,1773169843174,-300.0,6.905e-05,2]
[408142320,1773169843183,-300.0,6.905e-05,2]
[408142321,1773169843193,-300.0,6.905e-05,2]
[408142322,1773169843202,-300.0,6.905e-05,2]
[408142323,1773169843212,-300.0,6.905e-05,2]
[408142324,1773169843221,-300.0,6.905e-05,2]
[408142326,1773169843230,-300.0,6.905e-05,2]
[408142328,1773169843239,-300.0,6.905e-05,2]
[408142330,1773169843248,-300.0,6.905e-05,2]
[408142332,1773169843258,-300.0,6.905e-05,2]
[408142333,1773169843267,-600.0,7.042e-05,2]
[408142334,1773169843276,-763.670139,7.048e-05,2]
[408142335,1773169843286,-1680.0,7.082e-05,2]
[408142336,1773169843295,-378.49896884,7.191e-05,2]
[408142337,1773169843304,-763.670139,7.345e-05,2]
[408142338,1773169843315,-500.0,7.415e-05,2]
[408142339,1773169843324,-500.0,7.471e-05,2]
[408142340,1773169843333,-420.0,7.594e-05,2]
[408142341,1773169843343,-420.0,7.594e-05,2]
[408142342,1773169843352,-763.670139,7.641e-05,2]
[408142343,1773169843361,-488.46839187,7.7e-05,2]
[408142344,1773169843371,-1171.17382833,7.7e-05,2]
[408142345,1773169843380,-1964.70792744,7.703e-05,2]
[408142346,1773169843389,-720.0,7.746e-05,2]
[408142347,1773169843399,-545.69309793,7.782e-05,2]
[408142348,1773169843408,-500.0,7.782e-05,2]
[408142349,1773169843417,-170.37969306,7.782e-05,2]
[408142350,1773169843426,-500.0,7.782e-05,2]
[408142351,1773169843436,-500.0,7.782e-05,2]
[408142352,1773169843445,-250.29586151,7.782e-05,2]
[408142353,1773169843454,-250.0,7.782e-05,2]
[408142354,1773169843463,-500.0,7.782e-05,2]
[408142355,1773169843472,-500.0,7.783e-05,2]
[408142356,1773169843482,-500.0,7.783e-05,2]
[408142357,1773169843491,-500.0,7.783e-05,2]
[408142358,1773169843501,-500.0,7.783e-05,2]
[408142359,1773169843511,-500.0,7.783e-05,2]
[408142360,1773169843520,-500.0,7.783e-05,2]
[408142361,1773169843529,-500.0,7.783e-05,2]
[408142362,1773169843539,-500.0,7.783e-05,2]
[408142363,1773169843548,-500.0,7.783e-05,2]
[408142364,1773169843558,-2351.0,7.79e-05,2]
[408142365,1773169843567,-3936.2424659,7.803e-05,2]
[408142366,1773169843578,-136631.59351649,7.803e-05,2]
[408142367,1773169843630,-5711.3793937,7.803e-05,2]
[408142368,1773169843642,-31493.68091032,7.803e-05,2]
[408142369,1773169843653,-818.58,7.803e-05,2]
[408142370,1773169843665,-10000.0,7.803e-05,2]
[408142575,1773169845847,-24240.68112634,7.803e-05,2]
[408142582,1773169845902,-6290.123113,7.803e-05,2]
[408142584,1773169845914,-560.367,7.803e-05,2]
[408142734,1773170464236,2000.0,0.000102,120]
[408142737,1773170832129,-1307.1087901,5.484e-05,2]
[408142799,1773171031938,-1000.0,5.321e-05,2]
[408142802,1773171031996,-4000.0,5.321e-05,2]
[408142803,1773171032006,-5000.0,5.375e-05,2]
[408142804,1773171032015,-1200.0,5.428e-05,2]
[408142805,1773171032024,-536.04217142,5.429e-05,2]
[408142832,1773171038102,-3289.58885062,5.429e-05,2]
[408142835,1773171038113,-1174.36897796,5.429e-05,2]
[408142837,1773171038122,-300.0,5.483e-05,2]
[408142839,1773171038132,-295.06644022,5.512e-05,2]
[408142841,1773171038141,-3.00608878,5.538e-05,2]
[408143311,1773171043242,-296.99391122,5.538e-05,2]
[408143313,1773171043251,-300.0,5.538e-05,2]
[408143315,1773171043260,-300.0,5.538e-05,2]
[408143317,1773171043270,-1680.0,5.971e-05,2]
[408143319,1773171043280,-3383.6729805,6.004e-05,2]
[408143321,1773171043288,-420.0,6.031e-05,2]
[408143323,1773171043298,-269.58310828,6.092e-05,2]
[408143433,1773171046205,-150.41689172,6.092e-05,2]
[408143434,1773171046215,-300.0,6.092e-05,2]
[408143435,1773171046224,-420.0,6.092e-05,2]
[408143436,1773171046233,-500.0,6.443e-05,2]
[408143437,1773171046242,-500.0,6.443e-05,2]
[408143438,1773171046252,-500.0,6.443e-05,2]
[408143439,1773171046261,-500.0,6.443e-05,2]